fUST/lending_fUST_20240120
["ID","MTS","AMOUNT","RATE_DAILY","PERIOD"]
[312259366,1705716641120,-2069.9093597,0.0002979,7]
[312259399,1705716641544,254.02996633,0.00016507,2]
[312259400,1705716641653,-4223.25279965,0.00016516,2]
[312259401,1705716641665,-8900.07971546,0.00016516,2]
[312259402,1705716641677,-622.29999999,0.00016516,2]
[312259403,1705716641688,-1001.50239903,0.00016516,2]
[312259777,1705717034213,155.33655693,0.00014864,2]
[312259790,1705717552100,-154.78330338,0.00016637,3]
[312259791,1705717552126,-2001.92927764,0.00016637,2]
[312259792,1705717552147,-254.02996633,0.00016638,2]
[312259793,1705717552169,-493.06996521,0.00016652,2]
[312259794,1705717552658,1467.7685682,0.00016203,2]
[312259795,1705717553360,155.0,0.00014864,2]
[312259796,1705717560283,155.0,0.00014864,2]
[312259797,1705717568944,155.0,0.00014864,2]
[312259798,1705717569709,1274.86341873,0.00014864,2]
[312259799,1705717571369,169.80275254,0.00014864,2]
[312259800,1705717572014,1261.88614,0.00014864,2]
[312259801,1705717572700,534.59567802,0.00014864,2]
[312259802,1705717572858,620.26741538,0.00014864,2]
[312259803,1705717574652,718.16824125,0.00016203,2]
[312259804,1705717574728,3216.22820706,0.00014864,2]
[312259805,1705717578891,182.7245571,0.00014864,2]
[312259806,1705717581096,155.69111147,0.00014864,2]
[312259807,1705717583892,10290.39182557,0.00014864,2]
[312259808,1705717590150,1261.88614,0.00014864,2]
[312259809,1705717590297,155.0,0.00014864,2]
[312259810,1705717591343,155.3542307,0.00014864,2]
[312259811,1705717591699,1274.86341873,0.00014864,2]
[312259812,1705717592081,547.7729977,0.00015,2]
[312259813,1705717592859,619.83536004,0.00014864,2]
[312259814,1705717594579,154.9690062,0.00014864,2]
[312259815,1705717596892,182.7245571,0.00014864,2]
[312259816,1705717600681,3216.22820706,0.00014864,2]
[312259817,1705717600709,511.55851892,0.00014864,2]
[312259818,1705717603883,1220.62975961,0.00014864,2]
[312259819,1705717608285,155.0,0.00014864,2]
[312259820,1705717608377,155.0,0.00014864,2]
[312259821,1705717610875,620.05138771,0.00014864,2]
[312259822,1705717612071,547.7729977,0.00015,2]
[312259823,1705717616576,155.0309938,0.00014864,2]
[312259824,1705717616890,182.7245571,0.00014864,2]
[312259825,1705717620900,342.99123089,0.00014864,2]
[312259826,1705717624679,280.70894478,0.00014864,2]
[312259827,1705717626016,525.71355624,0.00014864,2]
[312259828,1705717628294,198.59406288,0.00014864,2]
[312259829,1705717628380,190.42975937,0.00014864,2]
[312259830,1705717630090,547.7729977,0.00015,2]
[312259831,1705717630864,409.80847579,0.00014864,2]
[312259832,1705717631705,713.31992229,0.00014864,2]
[312259833,1705717634576,240.73753991,0.00014864,2]
[312259834,1705717636892,342.99123089,0.00014864,2]
[312259835,1705717642894,182.7245571,0.00014864,2]
[312259836,1705717654077,250.48538995,0.00015,2]
[312259837,1705717654916,342.99123089,0.00014864,2]
[312259838,1705717660894,197.01519628,0.00014864,2]
[312259839,1705717678894,342.99123089,0.00014864,2]
[312259840,1705717694895,289.47500353,0.00014864,2]
[312259887,1705717832595,-154.78330338,0.00016651,3]
[312259889,1705717832605,-382.49277579,0.00016652,2]
[312259891,1705717832614,-874.04705685,0.00017235,2]
[312259893,1705717832624,-1743.42822441,0.000189,2]
[312259895,1705717832633,-1581.76828075,0.00019,2]
[312259897,1705717832643,-170.582091,0.00019208,2]
[312259899,1705717832652,-1114.14548175,0.000195,2]
[312259900,1705717832662,-2102.56602861,0.00019631,2]
[312259902,1705717832671,-200.83649034,0.00019632,2]
[312259904,1705717832680,-24900.0,0.00019633,2]
[312259906,1705717832690,-351.993477,0.000197,2]
[312259908,1705717832699,-154.78330338,0.0002,2]
[312259909,1705717832709,-1197.48170656,0.0002,2]
[312259911,1705717832719,-849.96832798,0.0002,2]
[312259914,1705717832729,-678.35754423,0.0002,2]
[312259916,1705717832739,-154.78330338,0.0002,2]
[312259918,1705717832749,-3286.52869079,0.00020955,5]
[312259920,1705717832759,-1764.32790583,0.00021,2]
[312259922,1705717832768,-327.38324213,0.00021,2]
[312259924,1705717832778,-3482.62955366,0.00021171,2]
[312259926,1705717832788,-787.34773645,0.00021603,2]
[312259928,1705717832797,-254.15946642,0.00021603,2]
[312259930,1705717832806,-1017.68199247,0.00021604,2]
[312259932,1705717832815,-166.666666,0.00021918,2]
[312259934,1705717832824,-293.34385947,0.00022,4]
[312259936,1705717832833,-425.80364021,0.00022,2]
[312259938,1705717832842,-3966.85623058,0.00022,2]
[312259940,1705717832851,-200.0,0.00022001,7]
[312259942,1705717832861,-166.666666,0.00022431,2]
[312259944,1705717832871,-824.03065617,0.000227,2]
[312259946,1705717832880,-166.666666,0.00022944,2]
[312259948,1705717832889,-1570.89243892,0.00023,2]
[312259950,1705717832899,-166.666666,0.00023456,2]
[312259952,1705717832908,-1624.2404679,0.000239,2]
[312260017,1705717838655,-119.18775651,0.000239,2]
[312260018,1705717838665,-166.666666,0.00023969,2]
[312260019,1705717838675,-4012.5594856,0.00024,2]
[312260020,1705717838684,-280.0,0.00024201,7]
[312260021,1705717838693,-166.666666,0.00024482,2]
[312260022,1705717838703,-1045.90652664,0.00025,2]
[312260023,1705717838712,-4411.86242213,0.00025,2]
[312260024,1705717838726,-309.20208075,0.00025,2]
[312260025,1705717838735,-6279.9,0.00026262,3]
[312260026,1705717838745,-7535.88,0.00026272,3]
[312260027,1705717838754,-5233.25,0.00026302,3]
[312260028,1705717838763,-3245.3202104,0.00026312,2]
[312260090,1705717843594,-1607.33,0.00026312,2]
[312260091,1705717843607,-647.19209226,0.00026312,2]
[312260099,1705718583197,24900.0,0.00016367,2]
[312260100,1705718658028,188095.67848659,0.00016367,2]
[312260101,1705718659049,342.99123089,0.00016367,2]
[312260102,1705718671839,2300.0,0.00016291,2]
[312260103,1705718679031,460.21678558,0.00016367,2]
[312260104,1705718727839,-261.05411193,0.0001683,2]
[312260105,1705718727861,-154.76784823,0.0001683,2]
[312260106,1705718727882,-616.55903708,0.0001683,2]
[312260107,1705718727903,-154.76784823,0.0001683,2]
[312260108,1705718727925,-526.58372141,0.00016831,2]
[312260109,1705718727946,-211.47192424,0.00016831,2]
[312260110,1705718727967,-2102.56602861,0.00016831,2]
[312260111,1705718727989,-243.04898199,0.00016831,2]
[312260112,1705718728010,-191.35107696,0.00016831,2]
[312260113,1705718728031,-154.76784823,0.00016832,2]
[312260114,1705718728066,-178.85727899,0.00016832,2]
[312260115,1705718728091,-2033.84808518,0.00016832,2]
[312260116,1705718728114,-175.16804152,0.00016832,2]
[312260117,1705718728138,-13715.67412401,0.00016832,2]
[312260118,1705718728161,-213.36686653,0.00016833,2]
[312260119,1705718728186,-19694.96215333,0.00016833,2]
[312260120,1705718728212,-36953.29134027,0.00016833,2]
[312260121,1705718728237,-262.24692446,0.00016833,2]
[312260122,1705718728260,-20895.55414875,0.00016833,2]
[312260123,1705718728282,-687.73320843,0.00016834,2]
[312260124,1705718728305,-572.35940162,0.00016834,2]
[312260127,1705718792117,-164.6047724,0.00016825,2]
[312260128,1705718792137,-147.90105321,0.00016826,2]
[312260129,1705718815599,266.1661772,0.00015826,2]
[312260130,1705718831858,14642.0,0.00029,30]
[312260132,1705718923784,7779.0331199,0.00015818,2]
[312260135,1705718952070,1306.977355,0.00015819,2]
[312260137,1705718985707,215.305733,0.00016191,2]
[312260171,1705719031722,-154.76784823,0.0001672,2]
[312260173,1705719031732,-903.32634326,0.0001672,2]
[312260175,1705719031741,-154.76784823,0.0001672,3]
[312260177,1705719031750,-265.38873656,0.00016721,2]
[312260179,1705719031759,-166.94378863,0.00016721,2]
[312260181,1705719031768,-260.78466531,0.00016721,2]
[312260184,1705719031778,-286.68672353,0.00016722,2]
[312260187,1705719031787,-521.94289961,0.00016805,2]
[312260188,1705719031797,-687.73320843,0.00016805,2]
[312260190,1705719031806,-4440.16339537,0.00016805,2]
[312260193,1705719031818,-3561.44728377,0.00016805,2]
[312260194,1705719031826,-213.36686653,0.00016806,2]
[312260195,1705719031835,-164.6047724,0.00016806,2]
[312260196,1705719031844,-2033.84808518,0.00016806,2]
[312260197,1705719031854,-155.42134286,0.00016806,2]
[312260198,1705719031864,-1292.89594537,0.00016806,2]
[312260199,1705719031873,-268.89928237,0.00016806,2]
[312260200,1705719031882,-175.16804152,0.00016807,2]
[312260201,1705719031890,-1242.13158622,0.00016807,2]
[312260202,1705719031900,-156.90480438,0.00016807,2]
[312260203,1705719031909,-2377.40866622,0.00016807,2]
[312260217,1705719037789,-5181.4298309,0.00016721,2]
[312260218,1705719037799,-262.24692446,0.00016806,2]
[312260219,1705719037808,-154.76784823,0.00016806,2]
[312260220,1705719037817,-1992.87766821,0.00016806,2]
[312260221,1705719037826,-5176.85776878,0.00016807,2]
[312260222,1705719037853,-403.42937718,0.00016807,2]
[312260223,1705719037862,-155.64513105,0.00016807,2]
[312260224,1705719037870,-1007.5565536,0.00016807,2]
[312260225,1705719037880,-155.15554227,0.00016807,2]
[312260226,1705719037888,-167.24053871,0.00016807,2]
[312260227,1705719037898,-154.76784823,0.00016808,2]
[312260228,1705719037907,-19694.96215333,0.00016808,2]
[312260230,1705719037916,-20895.55414875,0.00016809,2]
[312260232,1705719037925,-609.65187029,0.00016809,2]
[312260234,1705719037935,-470.52459336,0.0001681,2]
[312260236,1705719037948,-155.23858693,0.0001681,2]
[312260239,1705719037957,-155.76740115,0.0001681,2]
[312260241,1705719037966,-421.58907475,0.0001681,2]
[312260243,1705719037976,-15215.3741409,0.00016811,2]
[312260244,1705719037985,-2001.92927764,0.00016818,2]
[312260246,1705719037994,-260.85390815,0.00016828,2]
[312260247,1705719038003,-178.3979026,0.00016828,2]
[312260248,1705719038014,-338.66324446,0.00016828,2]
[312260249,1705719038023,-155.17016417,0.00016828,2]
[312260250,1705719038033,-156.51076408,0.00016828,2]
[312260251,1705719038044,-616.11797952,0.00016828,2]
[312260252,1705719038054,-2109.81844429,0.00016828,2]
[312260253,1705719038065,-242.85606829,0.00016828,2]
[312260254,1705719038075,-192.46774778,0.00016828,2]
[312260255,1705719038087,-2954.21331717,0.00016829,2]
[312260256,1705719038097,-18269.34865322,0.00016829,2]
[312260257,1705719038109,-255.41248074,0.00016833,2]
[312260258,1705719038120,-3611.27244481,0.00016838,2]
[312260259,1705719038131,-3483.390888,0.00017012,2]
[312260260,1705719038140,-10230.66996976,0.00017189,2]
[312260261,1705719038150,-175.66226932,0.00017266,2]
[312260262,1705719038160,-155.2676003,0.00017359,2]
[312260263,1705719038169,-154.9999907,0.00017359,2]
[312260264,1705719038178,-155.50552488,0.00017359,2]
[312260265,1705719038188,-170.76550909,0.00017359,2]
[312260266,1705719038316,-1695.61964164,0.00017359,2]
[312260267,1705719038325,-157.82598062,0.00017359,2]
[312260268,1705719038335,-155.04612394,0.00017359,2]
[312260269,1705719038344,-3743.44064302,0.00017359,2]
[312260270,1705719038353,-253.93572922,0.00017359,2]
[312260271,1705719038362,-1104.7734153,0.00017359,2]
[312260272,1705719038372,-155.04961588,0.0001736,2]
[312260273,1705719038381,-875.01165605,0.0001736,2]
[312260274,1705719038391,-154.98450155,0.00017364,2]
[312260275,1705719038400,-200.0,0.00017667,2]
[312260276,1705719038410,-2128.07261004,0.000189,2]
[312260277,1705719038419,-1441.44773818,0.00019,2]
[312260278,1705719038428,-171.620572,0.00019178,2]
[312260279,1705719038438,-280.0,0.00019434,2]
[312260280,1705719038447,-1114.14548175,0.000195,2]
[312260281,1705719038458,-2771.70650628,0.00019998,5]
[312260282,1705719038468,-1199.65937379,0.0002,2]
[312260283,1705719038477,-235.89372475,0.0002,2]
[312260284,1705719038486,-849.96832798,0.0002,2]
[312260285,1705719038495,-678.35754423,0.0002,2]
[312260286,1705719038505,-154.76784823,0.0002,2]
[312260287,1705719038513,-219.99217692,0.0002,2]
[312260288,1705719038523,-1764.32790583,0.00021,2]
[312260289,1705719038532,-327.38324213,0.00021,2]
[312260290,1705719038541,-391.0,0.00021377,7]
[312260291,1705719038550,-166.666666,0.00021918,2]
[312260292,1705719038560,-3966.85623058,0.00022,2]
[312260293,1705719038569,-294.36629285,0.00022,4]
[312260294,1705719038578,-425.80364021,0.00022,2]
[312260295,1705719038587,-166.666666,0.00022431,2]
[312260296,1705719038597,-824.03065617,0.000227,2]
[312260297,1705719038606,-166.666666,0.00022944,2]
[312260298,1705719038615,-1570.89243892,0.00023,2]
[312260299,1705719038624,-166.666666,0.00023456,2]
[312260300,1705719038634,-200.0,0.00023515,7]
[312260301,1705719038643,-348.0,0.00023515,7]
[312260302,1705719038652,-1306.977355,0.00023729,2]
[312260303,1705719038661,-2128.07261004,0.000239,2]
[312260304,1705719038670,-166.666666,0.00023969,2]
[312260305,1705719038680,-4012.5594856,0.00024,2]
[312260306,1705719038689,-166.666666,0.00024482,2]
[312260307,1705719038699,-500.0,0.00024657,2]
[312260308,1705719038709,-500.0,0.00024657,2]
[312260309,1705719038718,-500.0,0.00024657,2]
[312260310,1705719038728,-500.0,0.00024657,2]
[312260311,1705719038738,-500.0,0.00024657,2]
[312260312,1705719038747,-500.0,0.00024657,2]
[312260313,1705719038756,-500.0,0.00024657,2]
[312260314,1705719038766,-500.0,0.00024657,2]
[312260315,1705719038775,-500.0,0.00024657,2]
[312260316,1705719038784,-500.0,0.00024657,2]
[312260317,1705719038793,-500.0,0.00024657,2]
[312260318,1705719038802,-500.0,0.00024657,2]
[312260319,1705719038812,-500.0,0.00024657,2]
[312260320,1705719038822,-416.24173969,0.00024657,2]
[312260321,1705719038831,-35599.14993192,0.0002479,2]
[312260322,1705719038872,-14400.85006808,0.0002479,2]
[312260323,1705719038881,-377.72836262,0.000249,2]
[312260324,1705719038889,-498.11936971,0.0002495,5]
[312260325,1705719038898,-1045.90652664,0.00025,2]
[312260326,1705719038907,-4721.06450288,0.00025,2]
[312260327,1705719038917,-155.16885659,0.00025,2]
[312260328,1705719038926,-155.5855391,0.00025,2]
[312260329,1705719038935,-193.30440341,0.00025,2]
[312260330,1705719038947,-200.0,0.00025867,7]
[312260331,1705719038955,-200.0,0.00025867,7]
[312260332,1705719038965,-368.0,0.00025867,7]
[312260333,1705719038974,-150.06,0.00026,2]
[312260334,1705719038984,-3941.84415328,0.00026,2]
[312260335,1705719038994,-430.02670321,0.00026135,2]
[312260336,1705719039003,-500.0,0.00026135,2]
[312260337,1705719039014,-500.0,0.00026135,2]
[312260338,1705719039026,-500.0,0.00026135,2]
[312260339,1705719039035,-500.0,0.00026135,2]
[312260340,1705719039046,-215.88845184,0.00026135,2]
[312260341,1705719039055,-500.0,0.00026135,2]
[312260342,1705719039064,-500.0,0.00026135,2]
[312260343,1705719039074,-500.0,0.00026135,2]
[312260344,1705719039083,-500.0,0.00026135,2]
[312260345,1705719039092,-270.1902795,0.00026135,2]
[312260346,1705719039101,-500.0,0.00026135,2]
[312260347,1705719039111,-520.27579336,0.00026135,2]
[312260348,1705719039120,-464.84968044,0.00026135,2]
[312260349,1705719039129,-500.0,0.00026135,2]
[312260350,1705719039138,-500.0,0.00026135,2]
[312260351,1705719039149,-500.0,0.00026135,2]
[312260352,1705719039158,-500.0,0.00026135,2]
[312260353,1705719039167,-500.0,0.00026135,2]
[312260354,1705719039177,-500.0,0.00026135,2]
[312260355,1705719039186,-500.0,0.00026135,2]
[312260356,1705719039196,-323.43159092,0.00026135,2]
[312260357,1705719039205,-500.0,0.00026135,2]
[312260358,1705719039215,-398.25774799,0.00026135,2]
[312260359,1705719039225,-500.0,0.00026135,2]
[312260360,1705719039234,-500.0,0.00026135,2]
[312260361,1705719039243,-500.0,0.00026135,2]
[312260362,1705719039252,-500.0,0.00026135,2]
[312260363,1705719039262,-500.0,0.00026135,2]
[312260364,1705719039271,-500.0,0.00026135,2]
[312260365,1705719039280,-500.0,0.00026135,2]
[312260366,1705719039290,-500.0,0.00026135,2]
[312260367,1705719039300,-500.0,0.00026135,2]
[312260368,1705719039309,-500.0,0.00026135,2]
[312260369,1705719039318,-500.0,0.00026135,2]
[312260370,1705719039328,-500.0,0.00026135,2]
[312260371,1705719039337,-500.0,0.00026135,2]
[312260372,1705719039347,-500.0,0.00026135,2]
[312260373,1705719039356,-500.0,0.00026135,2]
[312260374,1705719039365,-500.0,0.00026135,2]
[312260375,1705719039374,-175.6622693,0.00026136,3]
[312260376,1705719039384,-377.72836259,0.0002615,2]
[312260377,1705719039395,-361.78024191,0.0002631,2]
[312260378,1705719039405,-330.50258575,0.0002631,2]
[312260379,1705719039414,-18891.91469266,0.0002631,2]
[312260380,1705719039424,-70602.9442966,0.0002631,2]
[312260381,1705719039433,-20860.81062343,0.0002631,2]
[312260382,1705719039443,-587.72935715,0.0002631,2]
[312260383,1705719039452,-1265.64175415,0.0002631,2]
[312260384,1705719039462,-160.90351567,0.0002631,2]
[312260385,1705719039471,-44500.15769734,0.00026312,2]
[312260386,1705719039480,-155.40390895,0.00026312,2]
[312260387,1705719039490,-4041.57114581,0.00026312,2]
[312260388,1705719039499,-547.67132072,0.00026312,2]
[312260389,1705719039509,-1609.56871004,0.00026566,2]
[312260390,1705719039518,-2352.09461901,0.00026567,2]
[312260391,1705719039528,-620.06597425,0.0002673,2]
[312260392,1705719039537,-260.03395017,0.00027,2]
[312260393,1705719039547,-13131.69,0.00027397,3]
[312260394,1705719039556,-10943.08,0.00027397,3]
[312260395,1705719039565,-377.72836259,0.000274,2]
[312260396,1705719039575,-313.43072457,0.00027603,2]
[312260397,1705719039584,-9116.9761504,0.0002785,4]
[312260398,1705719039593,-154.79876161,0.00028,10]
[312260399,1705719039602,-290.16476431,0.00028,2]
[312260400,1705719039611,-620.00329871,0.00028066,2]
[312260401,1705719039621,-12533.0,0.000281,2]
[312260402,1705719039630,-200.0,0.00028453,15]
[312260403,1705719039639,-200.0,0.00028453,15]
[312260404,1705719039649,-200.0,0.00028453,15]
[312260405,1705719039659,-200.0,0.00028453,15]
[312260406,1705719039668,-275.0,0.00028453,15]
[312260407,1705719039678,-401.4689539,0.00028493,2]
[312260408,1705719039687,-348.9326312,0.00028493,2]
[312260409,1705719039695,-199.0990555,0.00028493,2]
[312260410,1705719039704,-199.0990555,0.00028493,2]
[312260411,1705719039714,-199.0990555,0.00028493,2]
[312260412,1705719039724,-199.0990555,0.00028493,2]
[312260413,1705719039734,-199.0990555,0.00028493,2]
[312260414,1705719039743,-199.0990555,0.00028493,2]
[312260415,1705719039752,-199.0990555,0.00028493,2]
[312260416,1705719039762,-377.72836259,0.0002865,2]
[312260417,1705719039772,-155.18124402,0.00028701,3]
[312260418,1705719039781,-1164.81326935,0.000288,3]
[312260419,1705719039790,-2128.07261004,0.000289,2]
[312260421,1705719039799,-421.97185662,0.00028999,2]
[312260423,1705719039808,-500.0,0.00028999,4]
[312260425,1705719039817,-422.20026535,0.00028999,4]
[312260427,1705719039826,-213.35341648,0.00028999,4]
[312260428,1705719039835,-154.79876161,0.00029,2]
[312260429,1705719039844,-1879.95128807,0.00029,2]
[312260430,1705719039853,-155.0,0.00029,2]
[312260431,1705719039862,-763.70587335,0.00029,2]
[312260432,1705719039871,-1825.35938733,0.00029,2]
[312260433,1705719039880,-305.59076867,0.00029,2]
[312260434,1705719039889,-2083.53906819,0.00029,2]
[312260435,1705719039899,-261.47401535,0.00029,2]
[312260436,1705719039908,-300.0,0.00029,2]
[312260437,1705719039917,-3216.27669923,0.00029,2]
[312260438,1705719039928,-154.76784823,0.00029,2]
[312260439,1705719039938,-50000.0,0.00029215,5]
[312260440,1705719039949,-646.32373146,0.00029252,2]
[312260441,1705719039959,-50000.0,0.00029254,5]
[312260442,1705719039967,-620.00016494,0.00029469,2]
[312260443,1705719039977,-7640.62811996,0.000295,30]
[312260444,1705719039986,-156.35727794,0.00029777,2]
[312260445,1705719039996,-260.66534834,0.00029778,2]
[312260446,1705719040005,-797.94397896,0.00029783,2]
[312260447,1705719040015,-301.55365498,0.00029785,2]
[312260448,1705719040024,-259.08616376,0.00029786,2]
[312260449,1705719040034,-1769.67366915,0.00029786,2]
[312260450,1705719040043,-324.22894284,0.00029787,2]
[312260451,1705719040053,-154.86062544,0.00029788,2]
[312260452,1705719040062,-6648.56590905,0.00029788,2]
[312260453,1705719040072,-2717.41472124,0.00029789,2]
[312260454,1705719040080,-600.85800614,0.00029789,2]
[312260455,1705719040089,-219.3712843,0.00029789,2]
[312260456,1705719040098,-166.49400102,0.00029789,2]
[312260457,1705719040107,-1739.00119828,0.00029789,2]
[312260458,1705719040116,-1986.77,0.00029789,2]
[312260459,1705719040125,-1986.77,0.00029789,2]
[312260460,1705719040134,-1986.77,0.00029789,2]
[312260461,1705719040143,-1986.77,0.00029789,2]
[312260462,1705719040152,-1986.77,0.00029789,2]
[312260463,1705719040162,-1986.77,0.00029789,2]
[312260464,1705719040171,-1986.77,0.00029789,2]
[312260465,1705719040180,-1986.77,0.00029789,2]
[312260466,1705719040190,-1986.77,0.00029789,2]
[312260467,1705719040198,-1986.77,0.00029789,2]
[312260468,1705719040209,-97811.5432968,0.0002979,7]
[312260469,1705719040218,-1000.0,0.00029845,2]
[312260470,1705719040228,-1562.22183731,0.000299,2]
[312260471,1705719040238,-377.72836259,0.000299,2]
[312260472,1705719040247,-200.37400988,0.0003,2]
[312260473,1705719040256,-686.62627649,0.0003,4]
[312260474,1705719040266,-1725.0,0.0003,2]
[312260475,1705719040275,-465.0881123,0.0003,2]
[312260476,1705719040284,-682.57522362,0.0003,3]
[312260477,1705719040293,-688.20824377,0.0003,4]
[312260478,1705719040302,-29957.37867167,0.0003,2]
[312260479,1705719040311,-30327.30491484,0.0003,2]
[312260480,1705719040321,-30497.95907604,0.0003,3]
[312260481,1705719040329,-2104.48868232,0.0003,4]
[312260482,1705719040434,-18589.14989047,0.0003,2]
[312260483,1705719040444,-699.95088598,0.0003,2]
[312260484,1705719040453,-363330.18016062,0.0003,30]
[312260485,1705719040463,-151.0,0.0003,2]
[312260486,1705719040473,-532.136085,0.0003,2]
[312260487,1705719040482,-532.136085,0.0003,2]
[312260488,1705719040491,-151.0,0.0003,2]
[312260489,1705719040500,-18360.9052006,0.0003,2]
[312260490,1705719040510,-151.0,0.0003,2]
[312260491,1705719040519,-151.0,0.0003,2]
[312260492,1705719040529,-153.381924,0.0003,2]
[312260493,1705719040538,-2354.375306,0.0003,2]
[312260494,1705719040548,-2354.375306,0.0003,2]
[312260495,1705719040557,-2891.47244817,0.0003,2]
[312260496,1705719040566,-2891.47244817,0.0003,2]
[312260497,1705719040575,-2891.47244817,0.0003,2]
[312260498,1705719040584,-2891.47244817,0.0003,2]
[312260499,1705719040593,-2891.47244817,0.0003,2]
[312260500,1705719040620,-2891.47244817,0.0003,2]
[312260501,1705719040647,-2891.47244817,0.0003,2]
[312260502,1705719040656,-2891.47244817,0.0003,2]
[312260503,1705719040666,-2891.47244817,0.0003,2]
[312260504,1705719040675,-2891.47244817,0.0003,2]
[312260505,1705719040684,-9167.251196,0.0003,2]
[312260506,1705719040693,-9167.251196,0.0003,2]
[312260507,1705719040702,-500.0,0.00030136,2]
[312260508,1705719040712,-157.453963,0.00030137,2]
[312260509,1705719040722,-253.18311397,0.00030137,7]
[312260510,1705719040731,-509.36700614,0.00030273,2]
[312260511,1705719040740,-156.18717786,0.0003037,2]
[312260512,1705719040750,-200.0,0.000307,4]
[312260513,1705719040758,-621.31618657,0.00030715,2]
[312260514,1705719040767,-150.5,0.0003082,30]
[312260515,1705719040776,-150.5,0.0003083,30]
[312260516,1705719040785,-325.0,0.0003084,30]
[312260517,1705719040794,-569.0,0.0003084,30]
[312260518,1705719040804,-150.5,0.0003084,30]
[312260519,1705719040813,-325.0,0.0003085,30]
[312260520,1705719040823,-569.0,0.0003085,30]
[312260521,1705719040832,-325.0,0.0003086,30]
[312260522,1705719040841,-569.0,0.0003086,30]
[312260523,1705719040850,-275.07,0.0003089,30]
[312260524,1705719040860,-3000.0,0.000309,7]
[312260525,1705719040869,-38579.31707586,0.000309,3]
[312260526,1705719040879,-150.0,0.00030937,2]
[312260527,1705719040888,-168.00002645,0.00031,2]
[312260528,1705719040897,-150.0,0.00031,4]
[312260529,1705719040906,-2846.05665284,0.00031,2]
[312260530,1705719040916,-78204.90200563,0.00031,2]
[312260531,1705719040930,-10202.84952288,0.00031,2]
[312260532,1705719040981,-9930.71596189,0.00031,2]
[312260533,1705719040990,-151.0,0.00031,2]
[312260534,1705719040999,-151.0,0.00031,2]
[312260535,1705719041009,-532.136085,0.00031,2]
[312260536,1705719041019,-532.136085,0.00031,2]
[312260537,1705719041028,-232.528049,0.00031,2]
[312260538,1705719041038,-151.0,0.00031,2]
[312260539,1705719041047,-151.0,0.00031,2]
[312260540,1705719041056,-2354.375306,0.00031,2]
[312260541,1705719041065,-2354.375306,0.00031,2]
[312260542,1705719041074,-9167.251196,0.00031,2]
[312260543,1705719041083,-9167.251196,0.00031,2]
[312260545,1705719041092,-157.453963,0.00031096,2]
[312260547,1705719041101,-245.111986,0.000312,4]
[312260548,1705719041111,-3987.33000039,0.00031295,2]
[312260661,1705719042762,-191.35107696,0.00016806,2]
[312260663,1705719042771,-154.76784823,0.00016806,2]
[312260665,1705719042780,-153.88107481,0.00028998,2]
[312260667,1705719042793,-369.64800847,0.00028998,2]
[312260669,1705719042802,-689.48261914,0.00028998,2]
[312260671,1705719042812,-403.85218904,0.00028999,4]
[312260673,1705719042821,-382.12948962,0.00028999,4]
[312260675,1705719042830,-500.0,0.00028999,4]
[312260676,1705719042839,-414.42769373,0.00028999,4]
[312260873,1705719045795,-214.01271157,0.00028998,2]
[312260874,1705719045804,-4895.45856997,0.00028998,2]
[312260875,1705719045816,-314.1231325,0.00028998,2]
[312260876,1705719070115,108000.0,0.00016191,2]
[312260877,1705719247144,6113.00677875,0.000125,2]
[312260878,1705719353821,155.40390895,0.000125,2]
[312260879,1705719373415,4041.57114581,0.000125,2]
[312260880,1705719376351,547.67132072,0.00015,2]
[312260881,1705719443927,155.10755317,0.00015,2]
[312260882,1705719501316,686.32629673,0.00015,2]
[312260883,1705719632227,977.54301686,0.00015097,2]
[312260884,1705719662340,24900.0,0.00015774,2]
[312260885,1705719970655,-3426.32342593,0.00016405,2]
[312260886,1705719970886,-69.92496788,0.00016405,2]